[Event "January 9 Late 2024"]
[Site "https://www.chess.com"]
[Date "2024.01.09"]
[Round "5"]
[White "Senft, Sean"]
[Black "Eggleston, Thomas A"]
[Result "0-1"]
[Board "167"]
[TimeControl "180+1"]
[WhiteFideId "2044960"]
[BlackFideId "412139"]
[WhiteElo "2504"]
[BlackElo "2252"]
[WhiteTeam "USA"]
[BlackTeam "ENG"]
[WhiteClock "0:00:00"]
[BlackClock "0:00:11"]

1. d4 {[%clk 0:03:00]}  e6 {[%clk 0:03:00]} 2. c4 {[%clk 0:03:01]}  f5 {[%clk 0:03:00]} 3. Nc3 {[%clk 0:03:02]}  Nf6 {[%clk 0:03:00]} 4. Nf3 {[%clk 0:03:02]}  Bb4 {[%clk 0:03:00]} 5. g3 {[%clk 0:03:03]}  O-O {[%clk 0:03:00]} 6. Bg2 {[%clk 0:03:04]}  Kh8 {[%clk 0:02:57]} 7. O-O {[%clk 0:03:04]}  d6 {[%clk 0:02:52]} 8. Bg5 {[%clk 0:02:43]}  Bxc3 {[%clk 0:02:48]} 9. bxc3 {[%clk 0:02:43]}  Qe8 {[%clk 0:02:46]} 10. Bxf6 {[%clk 0:02:41]}  Rxf6 {[%clk 0:02:46]} 11. Nd2 {[%clk 0:02:38]}  e5 {[%clk 0:02:45]} 12. e3 {[%clk 0:02:32]}  Nc6 {[%clk 0:02:32]} 13. Rb1 {[%clk 0:02:26]}  Na5 {[%clk 0:02:29]} 14. Qc1 {[%clk 0:02:14]}  Rb8 {[%clk 0:02:22]} 15. Qa3 {[%clk 0:02:09]}  b6 {[%clk 0:02:20]} 16. c5 {[%clk 0:02:10]}  Ba6 {[%clk 0:02:17]} 17. Rfd1 {[%clk 0:01:56]}  Bd3 {[%clk 0:02:16]} 18. Rb2 {[%clk 0:01:47]}  dxc5 {[%clk 0:02:13]} 19. dxc5 {[%clk 0:01:46]}  e4 {[%clk 0:02:13]} 20. Bf1 {[%clk 0:01:35]}  Rd8 {[%clk 0:02:01]} 21. Bxd3 {[%clk 0:01:08]}  Rxd3 {[%clk 0:01:52]} 22. Rbb1 {[%clk 0:01:07]}  Rc6 {[%clk 0:01:43]} 23. Qa4 {[%clk 0:00:54]}  Qd8 {[%clk 0:01:42]} 24. Qc2 {[%clk 0:00:25]}  Rxc5 {[%clk 0:01:39]} 25. Nb3 {[%clk 0:00:24]}  Nxb3 {[%clk 0:01:23]} 26. Qxb3 {[%clk 0:00:22]}  Rcd5 {[%clk 0:01:22]} 27. Rdc1 {[%clk 0:00:20]}  Rd2 {[%clk 0:01:07]} 28. Qa4 {[%clk 0:00:16]}  Ra5 {[%clk 0:01:01]} 29. Qc4 {[%clk 0:00:12]}  Raxa2 {[%clk 0:00:57]} 30. Rf1 {[%clk 0:00:13]}  h6 {[%clk 0:00:53]} 31. Qf7 {[%clk 0:00:13]}  Qd7 {[%clk 0:00:46]} 32. Qf8+ {[%clk 0:00:08]}  Kh7 {[%clk 0:00:46]} 33. h4 {[%clk 0:00:05]}  Rd6 {[%clk 0:00:27]} 34. Rb4 {[%clk 0:00:03]}  c5 {[%clk 0:00:23]} 35. Rbb1 {[%clk 0:00:02]}  a5 {[%clk 0:00:22]} 36. h5 {[%clk 0:00:03]}  a4 {[%clk 0:00:21]} 37. c4 {[%clk 0:00:02]}  a3 {[%clk 0:00:18]} 38. Qa8 {[%clk 0:00:02]}  Qc6 {[%clk 0:00:14]} 39. Qf8 {[%clk 0:00:01]}  Qd7 {[%clk 0:00:11]} 40. Qa8 {[%clk 0:00:00]}  Qc6 {[%clk 0:00:11]} 0-1

[Event "January 9 Late 2024"]
[Site "https://www.chess.com"]
[Date "2024.01.09"]
[Round "5"]
[White "Gonzalez Vega, Alejandro"]
[Black "Benedetti, Julio"]
[Result "0-1"]
[Board "168"]
[TimeControl "180+1"]
[WhiteFideId "3510042"]
[BlackFideId "172545"]
[WhiteElo "2237"]
[BlackElo "2500"]
[WhiteTeam "CUB"]
[BlackTeam "ARG"]
[WhiteClock "0:00:00"]
[BlackClock "0:01:03"]

1. e4 {[%clk 0:02:50]}  c5 {[%clk 0:02:59]} 2. Nf3 {[%clk 0:02:47]}  d6 {[%clk 0:02:59]} 3. d4 {[%clk 0:02:46]}  cxd4 {[%clk 0:03:00]} 4. c3 {[%clk 0:02:44]}  Nf6 {[%clk 0:02:59]} 5. cxd4 {[%clk 0:02:42]}  Nxe4 {[%clk 0:02:54]} 6. d5 {[%clk 0:02:42]}  Nf6 {[%clk 0:02:53]} 7. Nc3 {[%clk 0:02:40]}  g6 {[%clk 0:02:53]} 8. Bd3 {[%clk 0:02:37]}  Bg7 {[%clk 0:02:53]} 9. O-O {[%clk 0:02:36]}  O-O {[%clk 0:02:53]} 10. h3 {[%clk 0:02:35]}  Nbd7 {[%clk 0:02:52]} 11. Re1 {[%clk 0:02:34]}  Nc5 {[%clk 0:02:52]} 12. Bc2 {[%clk 0:02:34]}  a5 {[%clk 0:02:52]} 13. Bg5 {[%clk 0:02:33]}  h6 {[%clk 0:02:50]} 14. Bh4 {[%clk 0:02:32]}  Re8 {[%clk 0:02:49]} 15. Qd2 {[%clk 0:02:26]}  Bd7 {[%clk 0:02:46]} 16. a4 {[%clk 0:02:21]}  Qb6 {[%clk 0:02:44]} 17. Nd4 {[%clk 0:01:43]}  Qb4 {[%clk 0:02:40]} 18. Bg3 {[%clk 0:01:30]}  Nxd5 {[%clk 0:02:38]} 19. Ndb5 {[%clk 0:01:04]}  Bxb5 {[%clk 0:02:35]} 20. Qxd5 {[%clk 0:00:57]}  Bc6 {[%clk 0:02:34]} 21. Qa2 {[%clk 0:00:46]}  Kf8 {[%clk 0:02:18]} 22. Rac1 {[%clk 0:00:38]}  Rad8 {[%clk 0:02:08]} 23. Nd5 {[%clk 0:00:35]}  Qxb2 {[%clk 0:02:03]} 24. Qc4 {[%clk 0:00:22]}  Bxd5 {[%clk 0:01:52]} 25. Qxd5 {[%clk 0:00:22]}  Qd4 {[%clk 0:01:53]} 26. Qf3 {[%clk 0:00:19]}  Qf6 {[%clk 0:01:52]} 27. Qd5 {[%clk 0:00:16]}  Rc8 {[%clk 0:01:42]} 28. Rcd1 {[%clk 0:00:12]}  Red8 {[%clk 0:01:30]} 29. Bb1 {[%clk 0:00:11]}  Rd7 {[%clk 0:01:27]} 30. Ba2 {[%clk 0:00:09]}  Nxa4 {[%clk 0:01:18]} 31. Qxa5 {[%clk 0:00:09]}  Nc3 {[%clk 0:01:16]} 32. Bd5 {[%clk 0:00:08]}  Nxd1 {[%clk 0:01:15]} 33. Rxd1 {[%clk 0:00:09]}  Qc3 {[%clk 0:01:05]} 34. Qb6 {[%clk 0:00:08]}  Be5 {[%clk 0:01:03]} 35. Bxe5 {[%clk 0:00:06]}  dxe5 {[%clk 0:01:04]} 36. Qb5 {[%clk 0:00:00]}  Rcd8 {[%clk 0:01:03]} 0-1

[Event "January 9 Late 2024"]
[Site "https://www.chess.com"]
[Date "2024.01.09"]
[Round "5"]
[White "Svicevic, Rastko"]
[Black "Palencia Morales, Wilson Guillermo"]
[Result "1-0"]
[Board "170"]
[TimeControl "180+1"]
[WhiteFideId "916315"]
[BlackFideId "4401859"]
[WhiteElo "2226"]
[BlackElo "2497"]
[WhiteTeam "SRB"]
[BlackTeam "COL"]
[WhiteClock "0:00:39"]
[BlackClock "0:00:07"]

1. d4 {[%clk 0:03:00]}  Nf6 {[%clk 0:02:59]} 2. Bg5 {[%clk 0:03:01]}  Ne4 {[%clk 0:02:58]} 3. Bf4 {[%clk 0:03:01]}  c5 {[%clk 0:02:57]} 4. d5 {[%clk 0:03:00]}  g6 {[%clk 0:02:51]} 5. f3 {[%clk 0:03:00]}  Nf6 {[%clk 0:02:51]} 6. e4 {[%clk 0:02:59]}  Bg7 {[%clk 0:02:51]} 7. c3 {[%clk 0:03:00]}  d6 {[%clk 0:02:51]} 8. a4 {[%clk 0:02:56]}  O-O {[%clk 0:02:50]} 9. Na3 {[%clk 0:02:56]}  Nbd7 {[%clk 0:02:43]} 10. Bd3 {[%clk 0:02:51]}  Nh5 {[%clk 0:02:41]} 11. Be3 {[%clk 0:02:48]}  Ne5 {[%clk 0:02:41]} 12. Ne2 {[%clk 0:02:43]}  e6 {[%clk 0:02:34]} 13. Ng3 {[%clk 0:02:29]}  Nxg3 {[%clk 0:02:28]} 14. hxg3 {[%clk 0:02:30]}  exd5 {[%clk 0:02:16]} 15. exd5 {[%clk 0:02:30]}  Re8 {[%clk 0:02:16]} 16. Kf2 {[%clk 0:02:26]}  f5 {[%clk 0:02:10]} 17. Nc4 {[%clk 0:02:14]}  Nxc4 {[%clk 0:01:58]} 18. Bxc4 {[%clk 0:02:13]}  Bd7 {[%clk 0:01:58]} 19. Qd2 {[%clk 0:02:11]}  Qf6 {[%clk 0:01:57]} 20. Bg5 {[%clk 0:01:53]}  Qf7 {[%clk 0:01:55]} 21. a5 {[%clk 0:01:50]}  b5 {[%clk 0:01:28]} 22. axb6 {[%clk 0:01:43]}  axb6 {[%clk 0:01:28]} 23. Rxa8 {[%clk 0:01:40]}  Rxa8 {[%clk 0:01:29]} 24. Re1 {[%clk 0:01:39]}  Re8 {[%clk 0:01:28]} 25. Rxe8+ {[%clk 0:01:35]}  Qxe8 {[%clk 0:01:28]} 26. Qe2 {[%clk 0:01:35]}  b5 {[%clk 0:01:23]} 27. Qxe8+ {[%clk 0:01:33]}  Bxe8 {[%clk 0:01:22]} 28. Ba2 {[%clk 0:01:26]}  c4 {[%clk 0:01:22]} 29. Be7 {[%clk 0:01:24]}  Bf8 {[%clk 0:01:08]} 30. Bxf8 {[%clk 0:01:19]}  Kxf8 {[%clk 0:01:08]} 31. Ke3 {[%clk 0:01:19]}  Ke7 {[%clk 0:01:06]} 32. Bb1 {[%clk 0:01:12]}  Kf6 {[%clk 0:01:04]} 33. f4 {[%clk 0:01:06]}  g5 {[%clk 0:00:58]} 34. Bc2 {[%clk 0:01:04]}  h5 {[%clk 0:00:56]} 35. b3 {[%clk 0:01:02]}  cxb3 {[%clk 0:00:53]} 36. Bxb3 {[%clk 0:01:01]}  h4 {[%clk 0:00:50]} 37. fxg5+ {[%clk 0:00:58]}  Kxg5 {[%clk 0:00:50]} 38. gxh4+ {[%clk 0:00:59]}  Kg4 {[%clk 0:00:48]} 39. Bd1+ {[%clk 0:00:57]}  Kg3 {[%clk 0:00:47]} 40. h5 {[%clk 0:00:56]}  f4+ {[%clk 0:00:32]} 41. Ke4 {[%clk 0:00:56]}  Bf7 {[%clk 0:00:32]} 42. Bf3 {[%clk 0:00:50]}  Be8 {[%clk 0:00:26]} 43. Kf5 {[%clk 0:00:46]}  Bd7+ {[%clk 0:00:17]} 44. Kf6 {[%clk 0:00:44]}  Bh3 {[%clk 0:00:15]} 45. h6 {[%clk 0:00:40]}  Bxg2 {[%clk 0:00:14]} 46. Bxg2 {[%clk 0:00:40]}  Kxg2 {[%clk 0:00:14]} 47. h7 {[%clk 0:00:40]}  f3 {[%clk 0:00:14]} 48. h8=Q {[%clk 0:00:40]}  f2 {[%clk 0:00:14]} 49. Qg7+ {[%clk 0:00:40]}  Kh1 {[%clk 0:00:14]} 50. Qh6+ {[%clk 0:00:40]}  Kg2 {[%clk 0:00:14]} 51. Qg5+ {[%clk 0:00:40]}  Kh2 {[%clk 0:00:14]} 52. Qh4+ {[%clk 0:00:39]}  Kg2 {[%clk 0:00:14]} 53. Qg4+ {[%clk 0:00:40]}  Kh2 {[%clk 0:00:14]} 54. Qf3 {[%clk 0:00:39]}  Kg1 {[%clk 0:00:07]} 55. Qg3+ {[%clk 0:00:39]} 1-0

[Event "January 9 Late 2024"]
[Site "https://www.chess.com"]
[Date "2024.01.09"]
[Round "5"]
[White "Varela La Madrid, Maria"]
[Black "Sukandar, Irine Kharisma"]
[Result "0-1"]
[Board "176"]
[TimeControl "180+1"]
[WhiteFideId "3903346"]
[BlackFideId "7101937"]
[WhiteElo "2179"]
[BlackElo "2433"]
[WhiteTeam "VEN"]
[BlackTeam "INA"]
[WhiteClock "0:00:00"]
[BlackClock "0:00:03"]

1. d4 {[%clk 0:03:00]}  Nf6 {[%clk 0:02:55]} 2. c4 {[%clk 0:03:00]}  b6 {[%clk 0:02:55]} 3. Nc3 {[%clk 0:02:56]}  Bb7 {[%clk 0:02:55]} 4. Qc2 {[%clk 0:02:56]}  d5 {[%clk 0:02:52]} 5. cxd5 {[%clk 0:02:54]}  Nxd5 {[%clk 0:02:52]} 6. Nf3 {[%clk 0:02:51]}  g6 {[%clk 0:02:48]} 7. Bd2 {[%clk 0:02:50]}  Bg7 {[%clk 0:02:48]} 8. e4 {[%clk 0:02:47]}  Nxc3 {[%clk 0:02:47]} 9. Bxc3 {[%clk 0:02:47]}  O-O {[%clk 0:02:47]} 10. h4 {[%clk 0:02:42]}  h5 {[%clk 0:02:46]} 11. Bc4 {[%clk 0:02:39]}  Nd7 {[%clk 0:02:46]} 12. O-O {[%clk 0:02:35]}  Nf6 {[%clk 0:02:45]} 13. Rfe1 {[%clk 0:02:33]}  e6 {[%clk 0:02:37]} 14. Rad1 {[%clk 0:02:32]}  Ng4 {[%clk 0:02:27]} 15. Bb4 {[%clk 0:02:06]}  Re8 {[%clk 0:02:24]} 16. d5 {[%clk 0:01:58]}  exd5 {[%clk 0:02:19]} 17. Bxd5 {[%clk 0:01:57]}  Bxd5 {[%clk 0:02:13]} 18. Rxd5 {[%clk 0:01:56]}  Qc8 {[%clk 0:01:59]} 19. Bc3 {[%clk 0:01:32]}  c6 {[%clk 0:01:48]} 20. Rdd1 {[%clk 0:01:21]}  Bxc3 {[%clk 0:01:26]} 21. Qxc3 {[%clk 0:01:22]}  Qe6 {[%clk 0:01:26]} 22. b3 {[%clk 0:01:12]}  Rad8 {[%clk 0:01:25]} 23. Ng5 {[%clk 0:01:03]}  Qe7 {[%clk 0:01:21]} 24. f3 {[%clk 0:01:01]}  Ne5 {[%clk 0:01:18]} 25. g3 {[%clk 0:00:42]}  c5 {[%clk 0:01:08]} 26. Kg2 {[%clk 0:00:41]}  Rd6 {[%clk 0:00:56]} 27. Nh3 {[%clk 0:00:38]}  Red8 {[%clk 0:00:55]} 28. Rxd6 {[%clk 0:00:37]}  Qxd6 {[%clk 0:00:53]} 29. Nf4 {[%clk 0:00:36]}  Qd2+ {[%clk 0:00:43]} 30. Qxd2 {[%clk 0:00:36]}  Rxd2+ {[%clk 0:00:44]} 31. Re2 {[%clk 0:00:36]}  Rd1 {[%clk 0:00:44]} 32. Nd5 {[%clk 0:00:35]}  Rd3 {[%clk 0:00:40]} 33. Nf4 {[%clk 0:00:32]}  Rxf3 {[%clk 0:00:39]} 34. Nd5 {[%clk 0:00:29]}  Rd3 {[%clk 0:00:38]} 35. Rf2 {[%clk 0:00:26]}  Kg7 {[%clk 0:00:33]} 36. Nc7 {[%clk 0:00:21]}  Ng4 {[%clk 0:00:29]} 37. Rf4 {[%clk 0:00:16]}  Rd2+ {[%clk 0:00:29]} 38. Kf1 {[%clk 0:00:16]}  Rxa2 {[%clk 0:00:23]} 39. Ne8+ {[%clk 0:00:13]}  Kg8 {[%clk 0:00:22]} 40. Nd6 {[%clk 0:00:13]}  Ne3+ {[%clk 0:00:16]} 41. Kg1 {[%clk 0:00:13]}  Ra1+ {[%clk 0:00:17]} 42. Kh2 {[%clk 0:00:11]}  Ng4+ {[%clk 0:00:16]} 43. Kg2 {[%clk 0:00:11]}  Ra2+ {[%clk 0:00:16]} 44. Kg1 {[%clk 0:00:11]}  f6 {[%clk 0:00:16]} 45. e5 {[%clk 0:00:08]}  fxe5 {[%clk 0:00:15]} 46. Rf7 {[%clk 0:00:07]}  Rd2 {[%clk 0:00:14]} 47. Rd7 {[%clk 0:00:06]}  e4 {[%clk 0:00:12]} 48. Rd8+ {[%clk 0:00:05]}  Kh7 {[%clk 0:00:12]} 49. Rd7+ {[%clk 0:00:04]}  Kg8 {[%clk 0:00:05]} 50. Rd8+ {[%clk 0:00:04]}  Kg7 {[%clk 0:00:03]} 51. Ne8+ {[%clk 0:00:03]}  Kf7 {[%clk 0:00:03]} 52. Rxd2 {[%clk 0:00:03]}  Kxe8 {[%clk 0:00:04]} 53. Rd6 {[%clk 0:00:00]}  Kf7 {[%clk 0:00:03]} 0-1

[Event "January 9 Late 2024"]
[Site "https://www.chess.com"]
[Date "2024.01.09"]
[Round "5"]
[White "Vila Dupla, Aurelio"]
[Black "Storn, Justin"]
[Result "0-1"]
[Board "179"]
[TimeControl "180+1"]
[WhiteFideId "2203383"]
[BlackFideId "30922720"]
[WhiteElo "2174"]
[BlackElo "2414"]
[WhiteTeam "ESP"]
[BlackTeam "USA"]
[WhiteClock "0:00:11"]
[BlackClock "0:00:32"]

1. Nf3 {[%clk 0:03:00]}  d5 {[%clk 0:02:55]} 2. d4 {[%clk 0:03:00]}  Nf6 {[%clk 0:02:55]} 3. c4 {[%clk 0:02:58]}  e6 {[%clk 0:02:54]} 4. cxd5 {[%clk 0:02:57]}  exd5 {[%clk 0:02:54]} 5. Nc3 {[%clk 0:02:58]}  Nbd7 {[%clk 0:02:51]} 6. Bg5 {[%clk 0:02:54]}  Bb4 {[%clk 0:02:43]} 7. e3 {[%clk 0:02:45]}  h6 {[%clk 0:02:34]} 8. Bxf6 {[%clk 0:02:43]}  Qxf6 {[%clk 0:02:33]} 9. Bd3 {[%clk 0:02:32]}  c6 {[%clk 0:02:26]} 10. O-O {[%clk 0:02:29]}  O-O {[%clk 0:02:26]} 11. Rc1 {[%clk 0:02:27]}  Re8 {[%clk 0:02:26]} 12. a3 {[%clk 0:02:25]}  Bd6 {[%clk 0:02:10]} 13. b4 {[%clk 0:02:14]}  a6 {[%clk 0:02:10]} 14. Na4 {[%clk 0:02:13]}  b5 {[%clk 0:01:42]} 15. Nc3 {[%clk 0:01:57]}  a5 {[%clk 0:01:39]} 16. Qb3 {[%clk 0:01:18]}  Nb6 {[%clk 0:01:09]} 17. e4 {[%clk 0:01:18]}  Bf4 {[%clk 0:00:57]} 18. Rce1 {[%clk 0:00:35]}  Bg4 {[%clk 0:00:49]} 19. e5 {[%clk 0:00:35]}  Qe7 {[%clk 0:00:42]} 20. Be2 {[%clk 0:00:35]}  Nc4 {[%clk 0:00:37]} 21. bxa5 {[%clk 0:00:19]}  Bxf3 {[%clk 0:00:32]} 22. Bxf3 {[%clk 0:00:16]}  Nd2 {[%clk 0:00:33]} 23. Qb4 {[%clk 0:00:17]}  Nxf3+ {[%clk 0:00:32]} 24. gxf3 {[%clk 0:00:11]}  Qg5+ {[%clk 0:00:32]} 0-1

[Event "January 9 Late 2024"]
[Site "https://www.chess.com"]
[Date "2024.01.09"]
[Round "5"]
[White "Rees, Ioan"]
[Black "Aung Thant Zin"]
[Result "0-1"]
[Board "182"]
[TimeControl "180+1"]
[WhiteFideId "1801236"]
[BlackFideId "13000063"]
[WhiteElo "2397"]
[BlackElo "2141"]
[WhiteTeam "WLS"]
[BlackTeam "MYA"]
[WhiteClock "0:00:00"]
[BlackClock "0:00:07"]

1. Nf3 {[%clk 0:03:00]}  d5 {[%clk 0:02:59]} 2. c4 {[%clk 0:02:58]}  e6 {[%clk 0:02:59]} 3. d4 {[%clk 0:02:57]}  Nf6 {[%clk 0:02:58]} 4. Bg5 {[%clk 0:02:57]}  Be7 {[%clk 0:02:57]} 5. e3 {[%clk 0:02:57]}  Ne4 {[%clk 0:02:58]} 6. Bxe7 {[%clk 0:02:55]}  Qxe7 {[%clk 0:02:58]} 7. Nc3 {[%clk 0:02:51]}  f5 {[%clk 0:02:55]} 8. Bd3 {[%clk 0:02:50]}  O-O {[%clk 0:02:54]} 9. Qc2 {[%clk 0:02:48]}  c6 {[%clk 0:02:53]} 10. O-O {[%clk 0:02:47]}  Nd7 {[%clk 0:02:52]} 11. Ne2 {[%clk 0:02:47]}  Ndf6 {[%clk 0:02:50]} 12. Ne5 {[%clk 0:02:46]}  Bd7 {[%clk 0:02:50]} 13. f3 {[%clk 0:02:26]}  Nd6 {[%clk 0:02:49]} 14. c5 {[%clk 0:02:17]}  Nf7 {[%clk 0:02:48]} 15. f4 {[%clk 0:02:11]}  Be8 {[%clk 0:02:46]} 16. b4 {[%clk 0:02:10]}  Nxe5 {[%clk 0:02:38]} 17. dxe5 {[%clk 0:02:09]}  Nd7 {[%clk 0:02:35]} 18. Nd4 {[%clk 0:02:08]}  Kh8 {[%clk 0:02:33]} 19. a4 {[%clk 0:02:07]}  Rg8 {[%clk 0:02:32]} 20. Rfc1 {[%clk 0:01:43]}  g5 {[%clk 0:02:27]} 21. b5 {[%clk 0:01:41]}  Nf8 {[%clk 0:02:21]} 22. g3 {[%clk 0:01:26]}  Ng6 {[%clk 0:02:10]} 23. Qf2 {[%clk 0:01:16]}  Rc8 {[%clk 0:02:04]} 24. Rab1 {[%clk 0:01:02]}  gxf4 {[%clk 0:01:32]} 25. exf4 {[%clk 0:01:01]}  cxb5 {[%clk 0:01:30]} 26. axb5 {[%clk 0:00:54]}  Rxc5 {[%clk 0:01:30]} 27. Rxc5 {[%clk 0:00:55]}  Qxc5 {[%clk 0:01:29]} 28. Nxe6 {[%clk 0:00:55]}  Qc3 {[%clk 0:00:49]} 29. Bxf5 {[%clk 0:00:52]}  Nh4 {[%clk 0:00:48]} 30. Bh3 {[%clk 0:00:34]}  Nf3+ {[%clk 0:00:42]} 31. Kh1 {[%clk 0:00:32]}  Nd2 {[%clk 0:00:40]} 32. Rd1 {[%clk 0:00:24]}  Ne4 {[%clk 0:00:39]} 33. Qf1 {[%clk 0:00:19]}  Bxb5 {[%clk 0:00:36]} 34. Qg1 {[%clk 0:00:14]}  Qf3+ {[%clk 0:00:32]} 35. Bg2 {[%clk 0:00:15]}  Nf2+ {[%clk 0:00:30]} 36. Qxf2 {[%clk 0:00:16]}  Qxf2 {[%clk 0:00:30]} 37. Ng5 {[%clk 0:00:15]}  Be2 {[%clk 0:00:25]} 38. Rc1 {[%clk 0:00:11]}  Qb6 {[%clk 0:00:20]} 39. e6 {[%clk 0:00:11]}  h6 {[%clk 0:00:19]} 40. Nf7+ {[%clk 0:00:11]}  Kg7 {[%clk 0:00:20]} 41. Bxd5 {[%clk 0:00:10]}  Re8 {[%clk 0:00:18]} 42. Ne5 {[%clk 0:00:09]}  Rxe6 {[%clk 0:00:17]} 43. Bxe6 {[%clk 0:00:09]}  Bb5 {[%clk 0:00:14]} 44. Bd5 {[%clk 0:00:08]}  Bc6 {[%clk 0:00:14]} 45. Bxc6 {[%clk 0:00:08]}  bxc6 {[%clk 0:00:14]} 46. Rxc6 {[%clk 0:00:09]}  Qb1+ {[%clk 0:00:14]} 47. Kg2 {[%clk 0:00:09]}  Qa1 {[%clk 0:00:15]} 48. Rc7+ {[%clk 0:00:09]}  Kf6 {[%clk 0:00:15]} 49. Rf7+ {[%clk 0:00:09]}  Ke6 {[%clk 0:00:15]} 50. Kh3 {[%clk 0:00:08]}  a5 {[%clk 0:00:13]} 51. Rh7 {[%clk 0:00:09]}  Qf1+ {[%clk 0:00:13]} 52. Kh4 {[%clk 0:00:08]}  Qg2 {[%clk 0:00:11]} 53. Rxh6+ {[%clk 0:00:09]}  Kf5 {[%clk 0:00:11]} 54. h3 {[%clk 0:00:09]}  Qf2 {[%clk 0:00:10]} 55. Ra6 {[%clk 0:00:06]}  Qe1 {[%clk 0:00:10]} 56. Ra7 {[%clk 0:00:05]}  Ke4 {[%clk 0:00:10]} 57. Nc6 {[%clk 0:00:04]}  Kd5 {[%clk 0:00:10]} 58. Nxa5 {[%clk 0:00:03]}  Qf2 {[%clk 0:00:08]} 59. Rg7 {[%clk 0:00:00]}  Qb2 {[%clk 0:00:07]} 0-1

[Event "January 9 Late 2024"]
[Site "https://www.chess.com"]
[Date "2024.01.09"]
[Round "5"]
[White "Harrington, Steve"]
[Black "Stachanczyk, Jacek"]
[Result "0-1"]
[Board "183"]
[TimeControl "180+1"]
[WhiteFideId "2038730"]
[BlackFideId "1116657"]
[WhiteElo "2141"]
[BlackElo "2392"]
[WhiteTeam "USA"]
[BlackTeam "POL"]
[WhiteClock "0:00:18"]
[BlackClock "0:00:43"]

1. e4 {[%clk 0:03:00]}  e5 {[%clk 0:02:51]} 2. Nc3 {[%clk 0:02:58]}  Nf6 {[%clk 0:02:43]} 3. f4 {[%clk 0:02:52]}  d5 {[%clk 0:02:42]} 4. fxe5 {[%clk 0:02:50]}  Nxe4 {[%clk 0:02:42]} 5. d3 {[%clk 0:02:51]}  Nxc3 {[%clk 0:02:41]} 6. bxc3 {[%clk 0:02:52]}  c5 {[%clk 0:02:41]} 7. d4 {[%clk 0:02:51]}  Nc6 {[%clk 0:02:42]} 8. Nf3 {[%clk 0:02:51]}  c4 {[%clk 0:02:30]} 9. Be2 {[%clk 0:02:49]}  Be7 {[%clk 0:02:30]} 10. O-O {[%clk 0:02:48]}  O-O {[%clk 0:02:30]} 11. Kh1 {[%clk 0:02:48]}  f6 {[%clk 0:02:30]} 12. a4 {[%clk 0:02:42]}  fxe5 {[%clk 0:02:29]} 13. Nxe5 {[%clk 0:02:38]}  Rxf1+ {[%clk 0:02:22]} 14. Bxf1 {[%clk 0:02:35]}  Nxe5 {[%clk 0:02:23]} 15. dxe5 {[%clk 0:02:34]}  Be6 {[%clk 0:02:21]} 16. Be3 {[%clk 0:02:32]}  Bg5 {[%clk 0:02:09]} 17. a5 {[%clk 0:02:20]}  Bxe3 {[%clk 0:02:07]} 18. Qf3 {[%clk 0:01:53]}  Bc5 {[%clk 0:02:04]} 19. Rd1 {[%clk 0:01:50]}  Qe7 {[%clk 0:01:57]} 20. g3 {[%clk 0:01:36]}  Rf8 {[%clk 0:01:56]} 21. Qe2 {[%clk 0:01:31]}  Rf2 {[%clk 0:01:52]} 22. Qh5 {[%clk 0:01:29]}  d4 {[%clk 0:01:50]} 23. Bg2 {[%clk 0:01:15]}  d3 {[%clk 0:01:40]} 24. cxd3 {[%clk 0:01:05]}  cxd3 {[%clk 0:01:40]} 25. Rxd3 {[%clk 0:00:58]}  g6 {[%clk 0:01:27]} 26. Qd1 {[%clk 0:00:53]}  Kg7 {[%clk 0:01:22]} 27. Rd8 {[%clk 0:00:48]}  Ra2 {[%clk 0:01:03]} 28. Rb8 {[%clk 0:00:45]}  Rxg2 {[%clk 0:00:47]} 29. Kxg2 {[%clk 0:00:42]}  Bd7 {[%clk 0:00:43]} 30. Rxb7 {[%clk 0:00:18]}  Bc6+ {[%clk 0:00:43]} 0-1